[Event "Irish Championship 2020"]
[Site "Dublin"]
[Date "2020.08.07"]
[Round "7.10"]
[White "O'Connor, Jonathan"]
[Black "Collins, Adam"]
[Result "1/2-1/2"]
[ECO "D23"]
[WhiteElo "2159"]
[BlackElo "1760"]
[Annotator "ChessBase"]
[PlyCount "141"]
[EventDate "2020.08.01"]
[EventType "swiss"]
[EventCountry "IRL"]
[SourceTitle "playchess.com"]
[Source "ChessBase"]
[SourceQuality "1"]
[TimeControl "8100+35"]

1. d4 {[%emt 0:00:00]} d5 {[%emt 2:15:35]} 2. c4 {[%emt 0:00:00]} c6 {[%emt 0:00:35]} 3. Nf3 {[%emt 0:00:00]} Nf6 {[%emt 0:00:35]} 4. Qb3 {[%emt 0:00:08]} dxc4 {[%emt 0:00:35]} 5. Qxc4 {[%emt 0:00:44]} Bf5 {[%emt 0:00:35]} 6. g3 {[%emt 0:00:24]} e6 {[%emt 0:00:35]} 7. Bg2 {[%emt 0:00:14]} h6 {[%emt 0:00:35]} 8. O-O {[%emt 0:01:24]} Nbd7 {[%emt 0:00:00]} 9. Rd1 {[%emt 0:14:55]} Be7 {[%emt 0:01:10]} 10. e3 {[%emt 0:00:48]} O-O 11. Qe2 {[%emt 0:01:19]} Qb6 {[%emt 0:01:10]} 12. Nc3 {[%emt 0:04:43]} Rfe8 {[%emt 0:00:00]} 13. b3 {[%emt 1:57:56]} Rad8 14. Bb2 {[%emt 0:00:00]} Bh7 {[%emt 0:01:45]} 15. Rac1 {[%emt 0:00:00]} Nd5 {[%emt 0:00:35]} 16. Na4 {[%emt 0:00:00]} Qb5 {[%emt 0:00:35]} 17. Qxb5 {[%emt 0:00:00]} cxb5 {[%emt 0:00:00]} 18. Nc3 {[%emt 0:00:00]} Nxc3 {[%emt 0:01:10]} 19. Rxc3 {[%emt 0:00:00]} Be4 {[%emt 0:00:35]} 20. Ne1 {[%emt 0:00:00]} Bxg2 {[%emt 0:00:35]} 21. Nxg2 {[%emt 0:00:00]} Rc8 {[%emt 0:00:35]} 22. Rdc1 {[%emt 0:00:00]} Nb6 {[%emt 0:00:35]} 23. Nf4 {[%emt 0:00:00]} Bd6 {[%emt 0:00:35]} 24. Nd3 {[%emt 0:00:00]} f6 {[%emt 0:00:00]} 25. Kf1 {[%emt 0:00:00]} Kf7 {[%emt 0:00:00]} 26. e4 {[%emt 0:00:00]} f5 {[%emt 0:01:45]} 27. f3 {[%emt 0:00:00]} g5 {[%emt 0:00:00]} 28. Ke2 {[%emt 0:00:00]} h5 {[%emt 0:01:10]} 29. Rxc8 {[%emt 0:00:00]} Rxc8 {[%emt 0:00:35]} 30. Rxc8 {[%emt 0:00:00]} Nxc8 {[%emt 0:00:35]} 31. Bc1 {[%emt 0:00:00]} Kg6 {[%emt 0:00:35]} 32. Bd2 {[%emt 0:00:00]} b6 {[%emt 0:00:35]} 33. Bb4 {[%emt 0:00:35]} Bc7 {[%emt 0:00:00]} 34. Ke3 {[%emt 0:01:22]} a5 {[%emt 0:01:10]} 35. Bc3 {[%emt 0:00:48]} Ne7 {[%emt 0:00:35]} 36. Be1 {[%emt 0:02:56]} Kf7 {[%emt 0:00:35]} 37. h3 {[%emt 0:00:22]} Nc6 {[%emt 0:00:00]} 38. d5 {[%emt 0:02:41]} exd5 {[%emt 0:01:10]} 39. exd5 {[%emt 0:01:58]} Ne5 {[%emt 0:00:35]} 40. g4 {[%emt 0:00:31]} hxg4 {[%emt 0:00:00]} 41. hxg4 {[%emt 0:00:10]} Kg6 {[%emt 0:00:00]} 42. Bc3 {[%emt 0:01:17]} Nf7 {[%emt 0:01:45]} 43. Bd4 {[%emt 0:00:55]} Nh6 {[%emt 0:00:35]} 44. Be5 {[%emt 0:01:12]} Bd8 {[%emt 0:00:35]} 45. Nf2 {[%emt 0:00:43]} Nf7 {[%emt 0:00:35]} 46. Bb8 {[%emt 0:02:48]} Be7 {[%emt 0:00:35]} 47. Nd3 {[%emt 0:00:12]} Bd8 {[%emt 0:00:35]} 48. d6 {[%emt 0:01:11]} Kf6 {[%emt 0:00:35]} 49. Kd4 {[%emt 0:00:12]} fxg4 {[%emt 0:00:35]} 50. fxg4 {[%emt 0:00:13]} Ke6 {[%emt 0:00:35]} 51. Bc7 {[%emt 0:00:48]} Bf6+ {[%emt 0:00:35]} 52. Ke4 {[%emt 0:00:20]} Nxd6+ {[%emt 0:00:35]} 53. Bxd6 {[%emt 0:00:11]} Kxd6 {[%emt 0:00:35]} 54. Kf5 {[%emt 0:00:04]} Bd8 {[%emt 0:00:35]} 55. Ne5 {[%emt 0:00:20]} Kc5 {[%emt 0:00:35]} 56. a3 {[%emt 0:01:47]} a4 {[%emt 0:00:35]} 57. bxa4 {[%emt 0:00:52]} bxa4 {[%emt 0:00:35]} 58. Ke4 {[%emt 0:00:22]} Bc7 {[%emt 0:00:00]} 59. Nf3 {[%emt 0:01:08]} Bf4 {[%emt 0:00:00]} 60. Kd3 {[%emt 0:00:14]} Bc1 {[%emt 0:00:00]} 61. Kc3 {[%emt 0:00:06]} b5 {[%emt 0:02:20]} 62. Kc2 {[%emt 0:00:12]} Bxa3 {[%emt 0:00:00]} 63. Nxg5 {[%emt 0:00:06]} b4 {[%emt 0:01:10]} 64. Ne4+ {[%emt 0:00:18]} Kd4 {[%emt 0:00:00]} 65. Nd2 {[%emt 0:00:09]} Kd5 {[%emt 0:01:10]} 66. g5 {[%emt 0:00:55]} Ke6 {[%emt 0:00:00]} 67. Nc4 {[%emt 0:01:36]} b3+ {[%emt 0:01:10]} 68. Kc3 {[%emt 0:00:08]} Bc1 {[%emt 0:00:35]} 69. Kb4 {[%emt 0:00:26]} Kd5 {[%emt 0:00:35]} 70. g6 {[%emt 0:00:45]} Bh6 {[%emt 0:00:00]} 71. Nb6+ {[%emt 0:01:02]} 1/2-1/2

[Event "Irish Championship 2020"]
[Site "Dublin"]
[Date "2020.08.07"]
[Round "7.11"]
[White "Mirza, Diana"]
[Black "O'Connell, Gerard"]
[Result "0-1"]
[ECO "D02"]
[WhiteElo "1939"]
[BlackElo "2075"]
[Annotator "ChessBase"]
[PlyCount "56"]
[EventDate "2020.08.01"]
[EventType "swiss"]
[EventCountry "IRL"]
[SourceTitle "playchess.com"]
[Source "ChessBase"]
[SourceQuality "1"]
[TimeControl "8100+35"]

1. d4 {[%emt 0:00:00]} Nf6 {[%emt 0:00:00]} 2. Nf3 {[%emt 0:00:00]} g6 {[%emt 0:00:00]} 3. Nbd2 {[%emt 0:00:00]} d5 {[%emt 0:00:00]} 4. b4 {[%emt 0:00:00]} Bg7 {[%emt 0:00:03]} 5. e3 {[%emt 0:00:06]} a5 {[%emt 0:00:47]} 6. b5 {[%emt 0:00:15]} c5 {[%emt 0:00:50]} 7. Bb2 {[%emt 0:03:50]} c4 {[%emt 0:07:09]} 8. a4 {[%emt 0:00:45]} Nbd7 {[%emt 0:01:11]} 9. e4 {[%emt 0:04:31]} dxe4 {[%emt 0:18:20]} 10. Ng5 {[%emt 0:00:34]} Nb6 {[%emt 0:00:30]} 11. Ndxe4 Nxe4 {[%emt 0:10:38]} 12. Nxe4 {[%emt 0:06:46]} Qd5 {[%emt 0:01:09]} 13. f3 {[%emt 0:09:42]} O-O {[%emt 0:07:56]} 14. Be2 {[%emt 0:00:48]} Rd8 {[%emt 0:00:38]} 15. c3 {[%emt 0:03:02]} f5 {[%emt 0:17:20]} 16. Nf2 {[%emt 0:12:21]} e5 {[%emt 0:06:12]} 17. dxe5 {[%emt 0:10:03]} Bxe5 {[%emt 0:06:00]} 18. O-O {[%emt 0:06:03]} Be6 {[%emt 0:02:46]} 19. f4 {[%emt 0:12:06]} Bxf4 {[%emt 0:11:46]} 20. Bf3 {[%emt 0:02:12]} Qe5 {[%emt 0:02:36]} 21. Qe1 {[%emt 0:01:44]} Bxh2+ {[%emt 0:01:29]} 22. Kh1 {[%emt 0:00:05]} Bd5 {[%emt 0:00:14]} 23. Qxe5 {[%emt 0:03:19]} Bxe5 {[%emt 0:00:09]} 24. Rfe1 {[%emt 0:01:09]} Re8 {[%emt 0:02:37]} 25. Re3 {[%emt 0:03:24]} Bf4 {[%emt 0:10:00]} 26. Bxd5+ {[%emt 0:05:47]} Nxd5 {[%emt 0:02:08]} 27. Rxe8+ {[%emt 0:00:08]} Rxe8 {[%emt 0:00:12]} 28. Rd1 {[%emt 0:00:12]} Re2 {[%emt 0:04:08]} 0-1

[Event "Irish Championship 2020"]
[Site "Dublin"]
[Date "2020.08.07"]
[Round "7.12"]
[White "Cafolla, Peter"]
[Black "O`Gorman, Alice"]
[Result "0-1"]
[ECO "D31"]
[WhiteElo "1955"]
[BlackElo "1904"]
[Annotator "ChessBase"]
[PlyCount "68"]
[EventDate "2020.08.01"]
[EventType "swiss"]
[EventCountry "IRL"]
[SourceTitle "playchess.com"]
[Source "ChessBase"]
[SourceQuality "1"]
[TimeControl "8100+35"]

1. d4 {[%emt 0:00:00]} d5 {[%emt 0:00:00]} 2. c4 {[%emt 0:00:00]} e6 {[%emt 0:00:00]} 3. Nc3 {[%emt 0:00:00]} c6 {[%emt 0:00:00]} 4. Nf3 {[%emt 0:00:00]} dxc4 {[%emt 0:00:00]} 5. a4 {[%emt 0:00:07]} Bb4 {[%emt 0:00:00]} 6. e3 {[%emt 0:01:01]} b5 {[%emt 0:00:38]} 7. Be2 {[%emt 0:00:55]} Bb7 {[%emt 0:00:56]} 8. O-O {[%emt 0:00:08]} a6 {[%emt 0:00:48]} 9. Bd2 {[%emt 0:00:34]} Nf6 {[%emt 0:01:33]} 10. Ne5 {[%emt 0:01:29]} O-O {[%emt 0:02:24]} 11. f4 {[%emt 0:00:50]} Bxc3 {[%emt 0:04:58]} 12. bxc3 {[%emt 0:01:40]} Nbd7 {[%emt 0:05:41]} 13. a5 {[%emt 0:03:20]} c5 {[%emt 0:04:11]} 14. Bf3 {[%emt 0:02:26]} Qc7 {[%emt 0:05:42]} 15. Qc2 Bxf3 {[%emt 0:07:23]} 16. Rxf3 {[%emt 0:05:27]} Rfd8 {[%emt 0:01:56]} 17. Be1 {[%emt 0:02:27]} Rab8 {[%emt 0:08:30]} 18. Bh4 {[%emt 0:02:04]} Rdc8 {[%emt 0:05:43]} 19. f5 {[%emt 0:34:15]} Nxe5 {[%emt 0:09:44]} 20. dxe5 {[%emt 0:01:16]} Qxe5 {[%emt 0:06:29]} 21. Bg3 {[%emt 0:00:57]} Qe4 {[%emt 0:00:13]} 22. Qxe4 {[%emt 0:01:40]} Nxe4 {[%emt 0:00:06]} 23. Bxb8 {[%emt 0:00:11]} Rxb8 {[%emt 0:00:10]} 24. fxe6 {[%emt 0:00:48]} fxe6 {[%emt 0:03:39]} 25. Rd1 {[%emt 0:00:48]} Nxc3 {[%emt 0:15:47]} 26. Rd7 {[%emt 0:01:57]} Nd5 {[%emt 0:46:22]} 27. e4 {[%emt 0:30:41]} Nf6 {[%emt 0:03:24]} 28. Ra7 {[%emt 0:00:22]} b4 {[%emt 0:09:28]} 29. e5 {[%emt 0:15:56]} b3 {[%emt 0:04:58]} 30. exf6 {[%emt 0:09:46]} b2 {[%emt 0:00:21]} 31. Rxg7+ {[%emt 0:01:26]} Kf8 {[%emt 0:00:41]} 32. Rc7 {[%emt 0:07:28]} b1=Q+ {[%emt 0:00:12]} 33. Rf1 {[%emt 0:00:09]} Qd3 {[%emt 0:01:08]} 34. f7 {[%emt 0:00:28]} c3 {[%emt 0:00:43]} 0-1

[Event "Irish Championship 2020"]
[Site "Dublin"]
[Date "2020.08.07"]
[Round "7.13"]
[White "Jackson, Carl"]
[Black "Putar, Lara"]
[Result "0-1"]
[ECO "A03"]
[WhiteElo "2021"]
[BlackElo "1834"]
[Annotator "ChessBase"]
[PlyCount "106"]
[EventDate "2020.08.01"]
[EventType "swiss"]
[EventCountry "IRL"]
[SourceTitle "playchess.com"]
[Source "ChessBase"]
[SourceQuality "1"]
[TimeControl "8100+35"]

1. b3 {[%emt 0:01:59]} Nf6 {[%emt 0:00:00]} 2. Bb2 {[%emt 0:00:08]} d5 {[%emt 0:00:00]} 3. e3 {[%emt 0:00:18]} g6 {[%emt 0:00:12]} 4. f4 {[%emt 0:03:52]} Bg7 {[%emt 0:00:50]} 5. Nf3 {[%emt 0:00:17]} O-O {[%emt 0:01:45]} 6. Be2 {[%emt 0:02:03]} c5 {[%emt 0:00:37]} 7. Ne5 {[%emt 0:01:01]} Nc6 {[%emt 0:09:17]} 8. Nxc6 {[%emt 0:03:29]} bxc6 {[%emt 0:00:30]} 9. O-O {[%emt 0:05:03]} a5 {[%emt 2:07:04]} 10. Bf3 {[%emt 0:12:26]} Ba6 {[%emt 0:00:00]} 11. d3 {[%emt 0:07:47]} Qb6 {[%emt 0:00:00]} 12. Re1 {[%emt 0:07:45]} Rfd8 {[%emt 0:00:00]} 13. Nc3 {[%emt 0:14:37]} Qa7 {[%emt 0:00:00]} 14. Na4 {[%emt 0:12:45]} Bb5 {[%emt 0:00:00]} 15. g4 {[%emt 0:07:52]} Bxa4 {[%emt 0:00:00]} 16. bxa4 {[%emt 0:00:08]} c4 {[%emt 0:00:00]} 17. Qe2 {[%emt 0:10:07]} Rab8 {[%emt 0:00:00]} 18. Be5 {[%emt 0:07:27]} Rb4 {[%emt 0:00:00]} 19. c3 {[%emt 0:07:57]} cxd3 {[%emt 0:00:00]} 20. Qxd3 {[%emt 0:00:30]} Rxa4 {[%emt 0:00:00]} 21. Bd4 {[%emt 0:09:25]} c5 {[%emt 0:00:00]} 22. Bd1 {[%emt 0:00:12]} Rc4 {[%emt 0:00:00]} 23. Be5 {[%emt 0:03:42]} a4 {[%emt 0:00:00]} 24. Be2 {[%emt 0:13:40]} a3 {[%emt 0:00:00]} 25. Qc2 {[%emt 0:04:36]} Ra4 {[%emt 0:00:00]} 26. Rab1 {[%emt 0:01:46]} Qd7 {[%emt 0:00:00]} 27. h3 {[%emt 0:03:44]} c4 {[%emt 0:00:00]} 28. Bf3 {[%emt 0:01:34]} e6 {[%emt 0:00:00]} 29. Rb6 {[%emt 0:00:56]} Ne8 {[%emt 0:00:00]} 30. Reb1 {[%emt 0:01:16]} Bxe5 {[%emt 0:00:00]} 31. fxe5 {[%emt 0:00:16]} Ra7 {[%emt 0:01:55]} 32. h4 {[%emt 0:01:17]} Qc7 {[%emt 0:00:32]} 33. Qf2 {[%emt 0:00:30]} Qxe5 {[%emt 0:01:06]} 34. e4 {[%emt 0:00:46]} d4 {[%emt 0:02:17]} 35. R1b5 {[%emt 0:00:22]} Qg7 {[%emt 0:00:34]} 36. e5 {[%emt 0:00:30]} d3 {[%emt 0:01:04]} 37. Rb8 {[%emt 0:01:26]} Rad7 {[%emt 0:01:26]} 38. Qd2 {[%emt 0:01:25]} Nc7 {[%emt 0:01:13]} 39. Qg5 {[%emt 0:01:43]} Qf8 {[%emt 0:00:38]} 40. Rxd8 {[%emt 0:00:36]} Qxd8 {[%emt 0:00:36]} 41. Qxd8+ {[%emt 0:00:08]} Rxd8 {[%emt 0:00:03]} 42. Rc5 {[%emt 0:00:29]} Nd5 {[%emt 0:01:36]} 43. Rxc4 {[%emt 0:00:21]} Rb8 {[%emt 0:00:57]} 44. Bxd5 {[%emt 0:01:45]} exd5 {[%emt 0:00:01]} 45. Rd4 {[%emt 0:00:14]} Rb2 {[%emt 0:00:34]} 46. Rxd3 {[%emt 0:00:08]} Rxa2 {[%emt 0:00:07]} 47. Rxd5 {[%emt 0:00:05]} Rc2 {[%emt 0:00:10]} 48. Ra5 {[%emt 0:00:40]} a2 {[%emt 0:00:07]} 49. c4 {[%emt 0:01:45]} Rc1+ {[%emt 0:00:08]} 50. Kf2 {[%emt 0:00:07]} a1=Q {[%emt 0:00:07]} 51. Rxa1 {[%emt 0:00:05]} Rxa1 {[%emt 0:00:07]} 52. Ke3 {[%emt 0:00:02]} Kf8 {[%emt 0:00:20]} 53. c5 {[%emt 0:00:48]} Ra4 {[%emt 0:00:19]} 0-1

[Event "Irish Championship 2020"]
[Site "Dublin"]
[Date "2020.08.07"]
[Round "7.14"]
[White "Moran, Darragh"]
[Black "Casey, Eoghan"]
[Result "0-1"]
[ECO "B39"]
[WhiteElo "1873"]
[BlackElo "1954"]
[Annotator "ChessBase"]
[PlyCount "60"]
[EventDate "2020.08.01"]
[EventType "swiss"]
[EventCountry "IRL"]
[SourceTitle "playchess.com"]
[Source "ChessBase"]
[SourceQuality "1"]
[TimeControl "8100+35"]

1. d4 {[%emt 0:11:16]} Nf6 {[%emt 0:13:06]} 2. c4 {[%emt 0:00:15]} c5 {[%emt 0:00:25]} 3. Nf3 {[%emt 0:00:26]} cxd4 {[%emt 0:01:00]} 4. Nxd4 {[%emt 0:00:08]} Nc6 {[%emt 0:00:48]} 5. Nc3 {[%emt 0:00:45]} g6 {[%emt 0:02:45]} 6. e4 {[%emt 0:00:41]} Bg7 {[%emt 0:00:05]} 7. Be3 {[%emt 0:00:54]} Ng4 {[%emt 0:00:26]} 8. Qxg4 {[%emt 0:02:06]} Nxd4 {[%emt 0:00:47]} 9. Qd1 {[%emt 0:00:44]} Ne6 {[%emt 0:00:17]} 10. Be2 {[%emt 0:09:12]} Qa5 {[%emt 0:00:17]} 11. Qd2 {[%emt 0:24:55]} b6 {[%emt 0:04:16]} 12. Bg4 {[%emt 0:21:29]} Bb7 {[%emt 0:33:30]} 13. Bxe6 {[%emt 0:15:14]} dxe6 {[%emt 0:02:41]} 14. Rd1 {[%emt 0:19:13]} O-O {[%emt 0:13:28]} 15. f3 {[%emt 0:02:15]} Rfc8 {[%emt 0:34:14]} 16. O-O {[%emt 0:01:58]} Ba6 {[%emt 0:14:22]} 17. Qd7 {[%emt 0:06:22]} Bxc4 {[%emt 0:01:12]} 18. Rf2 {[%emt 0:00:16]} Bxc3 {[%emt 0:05:26]} 19. bxc3 {[%emt 0:00:11]} Qxc3 {[%emt 0:00:05]} 20. Bh6 {[%emt 0:02:37]} Qb4 {[%emt 0:03:17]} 21. Rfd2 {[%emt 0:00:16]} Qc5+ {[%emt 0:04:47]} 22. Kh1 {[%emt 0:00:24]} f6 {[%emt 0:02:51]} 23. g4 {[%emt 0:12:27]} Kf7 {[%emt 0:02:54]} 24. Bf4 {[%emt 0:03:29]} e5 {[%emt 0:01:08]} 25. Bg3 {[%emt 0:01:03]} Rc7 {[%emt 0:02:01]} 26. Qa4 {[%emt 0:00:14]} Qe3 {[%emt 0:00:22]} 27. Rd7 {[%emt 0:05:16]} Qxf3+ {[%emt 0:01:04]} 28. Kg1 {[%emt 0:00:01]} b5 {[%emt 0:01:05]} 29. Qb4 {[%emt 0:01:19]} Rxd7 {[%emt 0:00:18]} 30. Rxd7 {[%emt 0:00:02]} Qf1# {[%emt 0:00:47]} 0-1

[Event "Irish Championship 2020"]
[Site "Dublin"]
[Date "2020.08.07"]
[Round "7.15"]
[White "McHugh, Kevin"]
[Black "Byrne, Alex"]
[Result "1/2-1/2"]
[ECO "C06"]
[WhiteElo "2010"]
[BlackElo "1976"]
[Annotator "ChessBase"]
[PlyCount "134"]
[EventDate "2020.08.01"]
[EventType "swiss"]
[EventCountry "IRL"]
[SourceTitle "playchess.com"]
[Source "ChessBase"]
[SourceQuality "1"]
[TimeControl "8100+35"]

1. e4 {[%emt 0:05:32]} e6 {[%emt 0:06:08]} 2. d4 {[%emt 0:00:15]} d5 {[%emt 0:00:02]} 3. Nd2 {[%emt 0:00:06]} Nf6 {[%emt 0:00:12]} 4. e5 {[%emt 0:00:06]} Nfd7 {[%emt 0:00:03]} 5. Bd3 {[%emt 0:00:14]} c5 {[%emt 0:00:05]} 6. c3 {[%emt 0:00:05]} Nc6 {[%emt 0:00:04]} 7. Ne2 {[%emt 0:00:10]} cxd4 {[%emt 0:00:30]} 8. cxd4 {[%emt 0:00:06]} f6 {[%emt 0:00:05]} 9. exf6 {[%emt 0:00:06]} Nxf6 {[%emt 0:00:02]} 10. Nf3 {[%emt 0:00:14]} Bd6 {[%emt 0:00:03]} 11. O-O {[%emt 0:00:16]} Qc7 {[%emt 0:00:28]} 12. Bg5 {[%emt 0:00:15]} O-O {[%emt 0:00:09]} 13. Bh4 {[%emt 0:00:10]} Nh5 {[%emt 0:19:09]} 14. Qc2 {[%emt 0:01:00]} h6 {[%emt 0:06:32]} 15. Bh7+ {[%emt 0:02:56]} Kh8 {[%emt 0:00:21]} 16. Bg6 {[%emt 2:12:49]} Nf4 {[%emt 0:05:51]} 17. Nxf4 {[%emt 0:00:00]} Rxf4 {[%emt 0:01:49]} 18. Bg3 {[%emt 0:00:00]} Rf6 {[%emt 0:03:23]} 19. Bxd6 {[%emt 0:00:00]} Qxd6 {[%emt 0:00:03]} 20. Rad1 {[%emt 0:00:00]} Qf4 {[%emt 0:08:31]} 21. Be8 {[%emt 0:00:00]} e5 {[%emt 1:33:45]} 22. dxe5 {[%emt 0:00:00]} Nxe5 {[%emt 0:00:00]} 23. Nxe5 {[%emt 0:00:00]} Qxe5 {[%emt 0:00:00]} 24. Bb5 {[%emt 0:00:00]} Bg4 {[%emt 0:00:00]} 25. Rd2 {[%emt 0:00:00]} Rc8 {[%emt 0:00:00]} 26. Qd3 {[%emt 0:00:00]} Bf3 {[%emt 0:00:00]} 27. Qe3 {[%emt 0:00:00]} Qh5 {[%emt 0:00:00]} 28. Be2 {[%emt 0:00:00]} Bxe2 {[%emt 0:00:00]} 29. Qxe2 {[%emt 0:00:00]} Qxe2 {[%emt 0:00:00]} 30. Rxe2 {[%emt 0:00:00]} Kh7 {[%emt 0:00:00]} 31. Rd2 {[%emt 0:00:00]} Kg6 {[%emt 0:00:00]} 32. Rxd5 {[%emt 0:00:00]} Rc2 {[%emt 0:00:00]} 33. Rb5 {[%emt 0:00:00]} b6 {[%emt 0:00:00]} 34. a4 {[%emt 0:00:00]} a6 {[%emt 0:00:00]} 35. Rb4 {[%emt 0:00:00]} Rd6 {[%emt 0:00:00]} 36. g3 {[%emt 0:00:00]} Kf5 {[%emt 0:00:00]} 37. Re1 {[%emt 0:00:00]} g5 {[%emt 0:00:00]} 38. g4+ {[%emt 0:00:00]} Kg6 {[%emt 0:00:38]} 39. b3 {[%emt 0:00:00]} h5 {[%emt 0:01:11]} 40. h3 {[%emt 0:00:00]} Rf6 {[%emt 0:02:01]} 41. Re3 {[%emt 0:00:00]} h4 {[%emt 0:01:35]} 42. Rbe4 {[%emt 0:00:00]} Rcxf2 {[%emt 0:02:36]} 43. Re6 {[%emt 0:00:00]} Rd2 {[%emt 0:00:41]} 44. Rxf6+ {[%emt 0:00:00]} Kxf6 {[%emt 0:00:02]} 45. Kf1 {[%emt 0:00:00]} Rd5 {[%emt 0:00:33]} 46. Kf2 {[%emt 0:00:00]} Re5 {[%emt 0:00:13]} 47. Rc3 {[%emt 0:00:00]} Rc5 {[%emt 0:01:45]} 48. Re3 {[%emt 0:00:00]} b5 {[%emt 0:02:37]} 49. axb5 {[%emt 0:00:00]} axb5 {[%emt 0:00:01]} 50. Kg2 {[%emt 0:00:00]} Re5 {[%emt 0:00:46]} 51. Rd3 {[%emt 0:00:00]} Ke6 {[%emt 0:01:22]} 52. b4 {[%emt 0:00:00]} Re2+ {[%emt 0:00:33]} 53. Kf3 {[%emt 0:00:00]} Rb2 {[%emt 0:00:02]} 54. Rd8 {[%emt 0:00:00]} Rb3+ {[%emt 0:00:13]} 55. Kg2 {[%emt 0:00:00]} Rb2+ {[%emt 0:00:13]} 56. Kg1 {[%emt 0:00:00]} Ke5 {[%emt 0:00:10]} 57. Rf8 {[%emt 0:00:00]} Ke4 {[%emt 0:00:45]} 58. Rf5 {[%emt 0:00:00]} Rxb4 {[%emt 0:00:02]} 59. Rxg5 {[%emt 0:00:00]} Kf4 {[%emt 0:00:19]} 60. Rd5 {[%emt 0:00:00]} Rb1+ {[%emt 0:02:29]} 61. Kg2 {[%emt 0:00:00]} Rb2+ {[%emt 0:00:02]} 62. Kg1 {[%emt 0:00:00]} b4 {[%emt 0:00:47]} 63. g5 {[%emt 0:00:00]} Rb1+ {[%emt 0:00:07]} 64. Kg2 {[%emt 0:00:00]} Rb3 {[%emt 0:00:27]} 65. g6 {[%emt 0:00:00]} Rg3+ {[%emt 0:02:02]} 66. Kf2 {[%emt 0:00:00]} Ke4 {[%emt 0:00:41]} 67. Rb5 {[%emt 0:00:00]} Rxg6 {[%emt 0:01:57]} 1/2-1/2

[Event "Irish Championship 2020"]
[Site "Dublin"]
[Date "2020.08.07"]
[Round "7.16"]
[White "MacElligott, Gerard"]
[Black "Carroll, Peter"]
[Result "0-1"]
[ECO "A46"]
[WhiteElo "2020"]
[BlackElo "2009"]
[Annotator "ChessBase"]
[PlyCount "110"]
[EventDate "2020.08.01"]
[EventType "swiss"]
[EventCountry "IRL"]
[SourceTitle "playchess.com"]
[Source "ChessBase"]
[SourceQuality "1"]
[TimeControl "8100+35"]

1. d4 {[%emt 0:02:29]} Nf6 {[%emt 2:15:35]} 2. Nf3 {[%emt 0:00:16]} e6 {[%emt 0:00:35]} 3. g3 {[%emt 0:00:58]} b5 {[%emt 0:00:35]} 4. Bg2 {[%emt 0:00:41]} Bb7 {[%emt 0:00:35]} 5. O-O {[%emt 0:00:24]} c5 {[%emt 0:00:35]} 6. Bg5 {[%emt 0:02:20]} Be7 {[%emt 0:00:00]} 7. dxc5 {[%emt 0:03:34]} Bxc5 {[%emt 0:00:00]} 8. Qd3 {[%emt 0:03:15]} Qb6 {[%emt 0:00:00]} 9. Bxf6 gxf6 10. Nc3 {[%emt 0:12:51]} a6 {[%emt 0:02:55]} 11. Rad1 {[%emt 0:05:15]} Qc7 {[%emt 0:00:00]} 12. Ne4 {[%emt 0:12:11]} Be7 {[%emt 0:01:10]} 13. Nd6+ {[%emt 0:11:31]} Bxd6 {[%emt 0:00:35]} 14. Qxd6 {[%emt 0:00:10]} Qxd6 {[%emt 0:00:35]} 15. Rxd6 {[%emt 0:00:09]} Ke7 {[%emt 0:00:35]} 16. Rb6 {[%emt 0:18:48]} Bc6 {[%emt 0:00:00]} 17. Nd4 {[%emt 0:08:06]} Bxg2 {[%emt 0:00:00]} 18. Kxg2 {[%emt 0:00:15]} d5 {[%emt 0:01:45]} 19. Rb7+ {[%emt 0:08:02]} Nd7 {[%emt 0:00:00]} 20. a4 {[%emt 0:00:34]} bxa4 {[%emt 0:01:10]} 21. Ra1 {[%emt 0:09:25]} Kd8 {[%emt 0:00:00]} 22. Nc6+ {[%emt 0:01:36]} Kc8 {[%emt 0:00:00]} 23. Na5 {[%emt 0:00:18]} Rb8 {[%emt 0:01:45]} 24. Rxb8+ {[%emt 0:03:06]} Kxb8 {[%emt 0:00:35]} 25. Rxa4 {[%emt 0:00:39]} Nc5 {[%emt 0:00:35]} 26. Rh4 {[%emt 0:03:35]} Kc7 {[%emt 0:00:35]} 27. c4 {[%emt 0:23:23]} Rb8 {[%emt 0:00:35]} 28. cxd5 {[%emt 0:00:42]} exd5 {[%emt 0:00:35]} 29. b4 {[%emt 0:02:16]} Ne4 {[%emt 0:00:00]} 30. Rxh7 {[%emt 0:04:55]} Rxb4 {[%emt 0:01:10]} 31. Rxf7+ {[%emt 0:00:15]} Kb6 {[%emt 0:00:35]} 32. Nb7 {[%emt 0:00:26]} a5 {[%emt 0:00:35]} 33. Nd8 {[%emt 0:05:34]} a4 {[%emt 0:00:35]} 34. f3 {[%emt 0:00:20]} Nc3 {[%emt 0:00:35]} 35. Rxf6+ {[%emt 0:03:37]} Kb5 {[%emt 0:00:35]} 36. Nc6 {[%emt 0:01:04]} Rb2 {[%emt 0:00:35]} 37. Na7+ {[%emt 0:01:08]} Kc4 {[%emt 0:00:35]} 38. Rc6+ {[%emt 0:01:26]} Kb3 {[%emt 0:00:35]} 39. Rb6+ {[%emt 0:01:17]} Ka2 {[%emt 0:00:00]} 40. Ra6 {[%emt 0:00:45]} a3 {[%emt 0:01:10]} 41. Nc6 {[%emt 0:00:39]} Kb3 {[%emt 0:00:35]} 42. Nd4+ {[%emt 0:00:14]} Ka2 {[%emt 0:00:35]} 43. h4 {[%emt 0:00:41]} Nxe2 {[%emt 0:00:35]} 44. Nxe2 {[%emt 0:00:22]} Rxe2+ {[%emt 0:00:35]} 45. Kh3 {[%emt 0:00:14]} Kb2 {[%emt 0:00:35]} 46. h5 {[%emt 0:00:50]} a2 {[%emt 0:00:00]} 47. h6 {[%emt 0:00:16]} a1=Q {[%emt 0:01:10]} 48. Rxa1 {[%emt 0:00:09]} Kxa1 {[%emt 0:00:35]} 49. g4 {[%emt 0:00:25]} d4 {[%emt 0:00:00]} 50. h7 {[%emt 0:01:34]} Re8 {[%emt 0:01:10]} 51. g5 {[%emt 0:00:14]} d3 {[%emt 0:00:35]} 52. g6 {[%emt 0:00:13]} d2 {[%emt 0:00:00]} 53. g7 {[%emt 0:00:11]} d1=Q {[%emt 0:01:10]} 54. g8=Q {[%emt 0:00:55]} Rxg8 {[%emt 0:00:35]} 55. hxg8=Q {[%emt 0:00:13]} Qh1+ {[%emt 0:00:00]} 0-1